bitfinex-derivatives/quotes_BNBF0:USTF0_20251027
["timestamp","ask_amount","ask_price","bid_price","bid_amount"]
[1761547847784,0.15090674,1154.0,1152.2,0.56005757]
[1761547847985,2.1611392,1156.8,1151.7,0.63997686]
[1761547848191,0.15086978,1154.2,1151.8,0.56011981]
[1761547848390,2.1611392,1156.8,1151.9,0.56011981]
[1761547848689,0.15087959,1154.2,1152.0,0.56011981]
[1761547848890,0.15087959,1154.2,1152.1,0.56011981]
[1761547849190,0.15087305,1154.2,1152.2,0.56011981]
[1761547849390,0.15087305,1154.2,1152.3,0.56011981]
[1761547849590,0.15087305,1154.2,1152.4,0.560023]
[1761547849790,0.15087305,1154.2,1151.7,0.63997686]
[1761547849987,2.1611392,1157.6,1151.8,0.55996095]
[1761547850290,0.15084493,1154.4,1151.9,0.55996095]
[1761547850487,2.1611392,1157.4,1152.0,0.55996095]
[1761547850687,2.1611392,1157.4,1152.1,0.55996095]
[1761547850888,0.15084493,1154.4,1152.2,0.55996095]
[1761547851087,2.1611392,1157.4,1152.3,0.55996095]
[1761547851287,2.1611392,1157.4,1152.0,0.63997686]
[1761547851288,2.1611392,1156.6,1152.4,0.55996095]
[1761547851491,0.15081747,1154.7,1152.5,0.55996095]
[1761547851791,2.1611392,1156.8,1152.6,0.55996095]
[1761547851987,0.1508312,1155.6,1152.7,0.55996095]
[1761547852287,2.1611392,1156.6,1152.8,0.55942369]
[1761547852492,0.15081289,1154.9,1152.3,0.63997686]
[1761547852686,0.15081289,1154.9,1152.4,0.55941424]
[1761547852987,0.1508325,1154.8,1152.5,0.55941424]
[1761547853291,0.1508325,1154.8,1152.6,0.55941424]
[1761547853490,0.1508325,1154.8,1152.7,0.55941424]
[1761547853690,0.1508325,1154.8,1152.8,0.55941424]
[1761547853888,0.1508325,1154.8,1152.3,0.63997686]
[1761547854190,0.1508325,1154.8,1152.4,0.55943662]
[1761547854389,0.1508325,1154.8,1152.5,0.55943662]
[1761547854592,0.1508325,1154.8,1152.6,0.55943662]
[1761547854893,0.1508325,1154.8,1152.7,0.55943662]
[1761547855092,0.1508325,1154.8,1152.8,0.55943662]
[1761547855295,0.1508325,1154.8,1152.9,1.38]
[1761547873407,0.1508325,1154.8,1153.0,0.56209654]
[1761547873609,0.1508325,1154.8,1152.9,1.38]
[1761547873810,0.1508325,1154.8,1153.0,0.562255]
[1761547874012,0.1508325,1154.8,1152.9,1.38]
[1761547874212,0.1508325,1154.8,1153.0,0.56225551]
[1761547874412,0.1508325,1154.8,1152.9,1.38]
[1761547874612,0.1508325,1154.8,1153.0,0.56229135]
[1761547874811,0.1508325,1154.8,1152.9,1.38]
[1761547875015,0.1508325,1154.8,1153.0,0.56230907]
[1761547875314,0.1508325,1154.8,1152.9,1.38]
[1761547875512,0.1508325,1154.8,1153.0,0.56236481]
[1761547875710,0.1508325,1154.8,1152.9,1.38]
[1761547875913,0.1508325,1154.8,1153.0,0.56237237]
[1761547876113,0.1508325,1154.8,1152.9,1.38]
[1761547877612,0.1508325,1154.8,1153.0,0.5626264]
[1761547877817,0.1508325,1154.8,1152.9,1.38]
[1761547879218,0.1508325,1154.8,1152.2,0.63997686]
[1761547879418,0.1508325,1154.8,1152.3,0.56313136]
[1761547879717,0.1508325,1154.8,1152.4,0.56313136]
[1761547879915,0.1508325,1154.8,1152.5,0.56313136]
[1761547880117,0.1508325,1154.8,1152.6,0.56313136]
[1761547880314,0.1508325,1154.8,1152.7,0.56313136]
[1761547880513,0.1508325,1154.8,1152.8,0.56313136]
[1761547880717,0.1508325,1154.8,1152.9,0.56313136]
[1761547881012,0.1508325,1154.8,1153.0,0.56313136]
[1761547881216,0.1508325,1154.8,1152.3,0.63997686]
[1761547881412,0.1508325,1154.8,1152.4,0.56350072]
[1761547881611,0.1508325,1154.8,1152.5,0.56350072]
[1761547881814,0.1508325,1154.8,1152.6,0.56350072]
[1761547882013,0.1508325,1154.8,1152.7,0.56350072]
[1761547882217,0.1508325,1154.8,1152.8,0.56350072]
[1761547882416,0.1508325,1154.8,1152.9,0.56350072]
[1761547882713,0.1508325,1154.8,1153.0,0.56350072]
[1761547882918,0.1508325,1154.8,1152.9,1.485]
[1761547883118,0.1508325,1154.8,1153.0,0.56373005]
[1761547883415,0.1508325,1154.8,1152.9,1.485]
[1761547883718,0.1508325,1154.8,1153.0,0.56394258]
[1761547883915,0.1508325,1154.8,1152.9,1.485]
[1761547884116,0.1508325,1154.8,1153.0,0.56401449]
[1761547884319,0.1508325,1154.8,1152.9,1.485]
[1761547906138,0.1508325,1154.8,1153.0,0.56578092]
[1761547906437,0.1508325,1154.8,1152.9,1.485]
[1761547906738,0.1508325,1154.8,1153.0,0.56578934]
[1761547906943,0.1508325,1154.8,1152.9,1.485]
[1761547907145,0.1508325,1154.8,1153.0,0.56583927]
[1761547907340,0.1508325,1154.8,1152.9,1.485]
[1761547908046,0.1508325,1154.8,1153.0,0.56614972]
[1761547908240,0.1508325,1154.8,1152.9,1.485]
[1761547908443,0.1508325,1154.8,1153.0,0.56640087]
[1761547908640,0.1508325,1154.8,1152.9,1.485]
[1761547909044,0.1508325,1154.8,1153.0,0.56627249]
[1761547909243,0.1508325,1154.8,1152.9,1.485]
[1761547909439,0.1508325,1154.8,1153.0,0.56654522]
[1761547909643,0.1508325,1154.8,1152.9,1.485]
[1761547909841,0.1508325,1154.8,1153.0,0.5665438]
[1761547910047,0.1508325,1154.8,1152.9,1.485]
[1761547910247,0.1508325,1154.8,1153.0,0.56671596]
[1761547910465,0.1508325,1154.8,1152.9,1.485]
[1761547910649,0.1508325,1154.8,1153.0,0.56674508]
[1761547910848,0.1508325,1154.8,1152.9,1.485]
[1761547911048,0.1508325,1154.8,1153.0,0.56673204]
[1761547911351,0.1508325,1154.8,1152.9,1.485]
[1761547911549,0.1508325,1154.8,1153.0,0.56666243]
[1761547911750,0.1508325,1154.8,1153.1,0.56666243]
[1761547911950,0.1508325,1154.8,1152.9,1.485]
[1761547912150,0.1508325,1154.8,1153.0,0.56667128]
[1761547912351,0.1508325,1154.8,1152.9,1.485]
[1761547912551,0.1508325,1154.8,1153.0,0.56667131]
[1761547912750,0.1508325,1154.8,1152.9,1.485]
[1761547912952,0.1508325,1154.8,1153.0,0.56667153]
[1761547913252,0.1508325,1154.8,1152.9,1.485]
[1761547913448,0.1508325,1154.8,1153.0,0.5666764]
[1761547913653,0.1508325,1154.8,1152.9,1.485]
[1761547913848,0.1508325,1154.8,1153.0,0.56667655]
[1761547914052,0.1508325,1154.8,1152.9,1.485]
[1761547914253,0.1508325,1154.8,1153.0,0.56666414]
[1761547914452,0.1508325,1154.8,1153.1,0.56666414]
[1761547914650,0.1508325,1154.8,1152.9,1.485]
[1761547914851,0.1508325,1154.8,1153.0,0.56667705]
[1761547915154,0.1508325,1154.8,1153.1,0.56667705]
[1761547915355,0.1508325,1154.8,1152.9,1.485]
[1761547915552,0.1508325,1154.8,1153.0,0.56667971]
[1761547915751,0.1508325,1154.8,1153.1,0.56667971]
[1761547915951,0.1508325,1154.8,1152.9,1.485]
[1761547916152,0.1508325,1154.8,1153.0,0.56665652]
[1761547916454,0.1508325,1154.8,1153.1,0.56665652]
[1761547916653,0.1508325,1154.8,1152.9,1.485]
[1761547916853,0.1508325,1154.8,1153.0,0.56659443]
[1761547917052,0.1508325,1154.8,1153.1,0.56659443]
[1761547917256,0.1508325,1154.8,1152.9,1.485]
[1761547917454,0.1508325,1154.8,1153.0,0.56657281]
[1761547917656,0.1508325,1154.8,1153.1,0.56657281]
[1761547917853,0.1508325,1154.8,1152.9,1.485]
[1761547918059,0.1508325,1154.8,1153.0,0.56659052]
[1761547918359,0.1508325,1154.8,1153.1,0.56659052]
[1761547918556,0.1508325,1154.8,1152.9,1.485]
[1761547921661,2.3119717,1154.8,1152.9,1.485]
[1761547922063,0.1508325,1154.8,1152.9,1.485]
[1761547925667,2.1611392,1154.6,1152.9,1.485]
[1761547927271,0.1508325,1154.8,1152.9,1.485]
[1761547930471,2.1611392,1154.7,1152.9,1.485]
[1761547931375,2.3119717,1154.8,1152.9,1.485]
[1761547932073,2.1611392,1154.7,1152.9,1.485]
[1761547933577,0.1508325,1154.8,1152.9,1.485]
[1761547940679,2.3119717,1154.8,1152.9,1.485]
[1761547941585,0.1508325,1154.8,1152.9,1.485]
[1761547942684,0.1508325,1154.8,1151.8,0.63997686]
[1761547942887,0.1508325,1154.8,1151.9,0.60448241]
[1761547943182,0.1508325,1154.8,1152.0,0.60448241]
[1761547943382,0.1508325,1154.8,1152.1,0.60448241]
[1761547943586,0.1508325,1154.8,1152.2,0.60448241]
[1761547943792,0.1508325,1154.8,1152.3,0.60448241]
[1761547944085,0.1508325,1154.8,1151.7,0.63997686]
[1761547944282,0.1508325,1154.8,1151.8,0.60454746]
[1761547944487,0.1508325,1154.8,1151.9,0.60454746]
[1761547944787,0.1508325,1154.8,1152.0,0.60454746]
[1761547944984,0.1508325,1154.8,1152.1,0.60454746]
[1761547945185,0.1508325,1154.8,1151.6,0.63997686]
[1761547945485,0.1508325,1154.8,1151.7,0.60094822]
[1761547945688,0.1508325,1154.8,1151.8,0.60094822]
[1761547945988,0.1508325,1154.8,1151.9,0.60094822]
[1761547946288,0.1508325,1154.8,1152.0,1.62494822]
[1761547946487,0.1508325,1154.8,1152.1,0.60094822]
[1761547946689,0.1508325,1154.8,1152.0,1.024]
[1761547946889,0.1508325,1154.8,1152.1,0.60105271]
[1761547947090,0.1508325,1154.8,1152.0,1.024]
[1761547956495,0.1508325,1154.8,1152.1,0.59798368]
[1761547956693,0.1508325,1154.8,1152.0,1.024]
[1761547956993,0.1508325,1154.8,1152.1,0.59797463]
[1761547957196,0.1508325,1154.8,1152.0,1.024]
[1761547957394,0.1508325,1154.8,1152.1,0.59797992]
[1761547957693,0.1508325,1154.8,1152.0,1.024]
[1761547957997,0.1508325,1154.8,1152.1,0.59785124]
[1761547958298,0.1508325,1154.8,1152.0,1.024]
[1761547959796,0.1508325,1154.8,1152.1,0.59372798]
[1761547959998,0.1508325,1154.8,1152.2,0.59372798]
[1761547960196,0.1508325,1154.8,1152.0,1.024]
[1761547960497,0.1508325,1154.8,1152.1,0.59388617]
[1761547960802,0.1508325,1154.8,1152.2,0.59388617]
[1761547961001,0.1508325,1154.8,1152.0,1.024]
[1761547961199,0.1508325,1154.8,1152.1,0.59392383]
[1761547961397,0.1508325,1154.8,1152.2,0.59392383]
[1761547961597,0.1508325,1154.8,1152.0,1.024]
[1761547961801,0.1508325,1154.8,1152.1,0.59393415]
[1761547961998,0.1508325,1154.8,1152.2,0.59393415]
[1761547962298,0.1508325,1154.8,1152.0,1.024]
[1761547962501,0.1508325,1154.8,1152.1,0.59397764]
[1761547962702,0.1508325,1154.8,1152.2,0.59397764]
[1761547962899,0.1508325,1154.8,1152.0,1.024]
[1761547963099,0.1508325,1154.8,1152.1,0.59397764]
[1761547963305,0.1508325,1154.8,1152.2,0.59397764]
[1761547963603,0.1508325,1154.8,1152.3,0.59397764]
[1761547963806,0.1508325,1154.8,1151.7,0.63997686]
[1761547964001,0.1508325,1154.8,1151.8,0.59390977]
[1761547964210,0.1508325,1154.8,1151.9,0.59390977]
[1761547964501,0.1508325,1154.8,1152.0,0.59390977]
[1761547964704,0.1508325,1154.8,1152.1,0.59390977]
[1761547965005,0.1508325,1154.8,1151.7,0.63997686]
[1761547965304,0.1508325,1154.8,1151.8,0.59419505]
[1761547965505,0.1508325,1154.8,1151.9,0.59419505]
[1761547965700,0.1508325,1154.8,1152.0,0.59419505]
[1761547965905,0.1508325,1154.8,1152.1,0.59419505]
[1761547966105,0.1508325,1154.8,1151.7,0.63997686]
[1761547966301,0.1508325,1154.8,1151.8,0.59432598]
[1761547966606,0.1508325,1154.8,1151.9,0.59432598]
[1761547966901,0.1508325,1154.8,1151.4,0.86251851]
[1761547966902,0.1508325,1154.8,1152.0,2.06632598]
[1761547967103,0.1508325,1154.8,1152.0,1.472]
[1761547973309,2.1611392,1154.4,1152.0,1.472]
[1761547975314,3.0255949,1154.7,1152.0,1.472]
[1761547975315,2.1611392,1154.3,1152.0,1.472]
[1761547975815,3.0255949,1154.7,1152.0,1.472]
[1761547976415,0.1508325,1154.8,1152.1,0.58923905]
[1761547976609,0.1508325,1154.8,1152.0,1.472]
[1761547979417,2.1611392,1154.4,1152.0,1.472]
[1761547979916,2.1611392,1154.6,1152.0,1.472]
[1761547981411,2.1611392,1154.4,1152.0,1.472]
[1761547982518,2.1611392,1154.2,1152.0,1.472]
[1761547983018,2.1611392,1154.4,1152.0,1.472]
[1761547983715,0.1508325,1154.8,1152.0,1.472]
[1761547985521,2.1611392,1154.5,1152.0,1.472]
[1761547986320,2.1611392,1154.4,1152.0,1.472]
[1761547986617,2.1611392,1154.5,1152.0,1.472]
[1761547987321,2.1611392,1154.0,1152.0,1.472]
[1761547987718,2.1611392,1153.3,1152.0,1.472]
[1761547988423,2.1611392,1153.2,1152.0,1.472]
[1761547989219,2.1611392,1153.3,1152.0,1.472]
[1761547989921,2.1611392,1153.4,1152.0,1.472]
[1761547991425,2.1611392,1153.5,1152.0,1.472]
[1761547991922,2.1611392,1153.9,1152.0,1.472]
[1761547993925,2.1611392,1154.0,1152.0,1.472]
[1761547996530,2.1611392,1154.1,1152.0,1.472]
[1761547998528,2.1611392,1154.0,1152.0,1.472]
[1761548001729,2.1611392,1153.9,1152.0,1.472]
[1761548002133,2.1611392,1153.8,1152.0,1.472]
[1761548003230,2.1611392,1153.9,1152.0,1.472]
[1761548007333,2.1611392,1153.7,1152.0,1.472]
[1761548007938,5.1867341,1154.1,1152.0,1.472]
[1761548008436,2.1611392,1154.2,1152.0,1.472]
[1761548011640,2.1611392,1154.3,1152.0,1.472]
[1761548012238,2.1611392,1154.5,1152.0,1.472]
[1761548013242,2.1611392,1154.2,1152.0,1.472]
[1761548014143,2.1611392,1154.1,1152.0,1.472]
[1761548016841,2.1611392,1154.2,1152.0,1.472]
[1761548017444,2.1611392,1153.7,1152.0,1.472]
[1761548019945,4.2849482,1154.7,1152.0,1.472]
[1761548019946,2.1611392,1154.7,1152.0,1.472]
[1761548020541,0.1508325,1154.8,1152.0,1.472]
[1761548020945,2.1611392,1154.7,1152.0,1.472]
[1761548021245,2.1611392,1154.7,1150.0,0.63997686]
[1761548021443,2.1611392,1154.5,1150.1,0.57429398]
[1761548021742,2.1611392,1154.5,1150.2,0.57429398]
[1761548021942,2.1611392,1154.5,1150.3,0.57429398]
[1761548022140,2.1611392,1154.5,1150.0,0.63997686]
[1761548022141,2.1611392,1154.4,1150.4,0.57429398]
[1761548022342,2.1611392,1154.4,1150.5,0.57429398]
[1761548022542,2.1611392,1154.4,1150.6,0.57429398]
[1761548022740,2.1611392,1154.4,1150.0,0.63997686]
[1761548022945,2.1611392,1154.4,1150.1,0.56543292]
[1761548023241,2.1611392,1154.4,1150.2,0.56543292]
[1761548023444,2.1611392,1154.4,1150.3,0.56543292]
[1761548023644,2.1611392,1154.4,1150.4,0.56543292]
[1761548023842,2.1611392,1154.4,1150.5,0.56543292]
[1761548024046,2.1611392,1154.4,1150.6,0.56543292]
[1761548024347,2.1611392,1154.4,1150.7,0.56536871]
[1761548024543,0.1508325,1154.8,1150.1,0.63997686]
[1761548024544,2.1611392,1154.1,1150.1,0.63997686]
[1761548024749,2.1611392,1154.1,1150.2,0.5653828]
[1761548024948,2.1611392,1154.1,1150.3,1.8753828]
[1761548025249,2.1611392,1153.8,1150.4,0.5653828]
[1761548025451,2.1611392,1153.8,1150.5,0.5653828]
[1761548025650,2.1611392,1153.5,1150.6,0.5653828]
[1761548025946,2.1611392,1153.5,1150.7,0.5653828]
[1761548026148,2.1611392,1153.5,1150.3,1.94997686]
[1761548026348,2.1611392,1153.5,1150.4,1.20541423]
[1761548026545,2.1611392,1153.5,1150.5,0.56543737]
[1761548026848,2.1611392,1153.3,1150.6,0.56543737]
[1761548027044,2.1611392,1153.3,1150.7,0.56543737]
[1761548027244,2.1611392,1153.3,1150.4,0.63997686]
[1761548027446,2.1611392,1153.3,1150.5,0.56541262]
[1761548027749,2.1611392,1153.4,1150.6,0.56541262]
[1761548027949,2.1611392,1153.4,1150.7,0.56541262]
[1761548028147,2.1611392,1153.4,1150.3,1.94997686]
[1761548028351,2.1611392,1153.4,1150.4,0.56548615]
[1761548028551,2.1611392,1153.4,1150.5,0.56548615]
[1761548028749,2.1611392,1153.4,1150.6,0.56548615]
[1761548028945,2.1611392,1153.4,1150.7,0.56548615]
[1761548029246,2.1611392,1153.4,1150.3,1.94997686]
[1761548029448,2.1611392,1153.4,1150.4,0.56557244]
[1761548029748,2.1611392,1153.4,1150.5,0.56557244]
[1761548029946,2.1611392,1153.4,1150.6,0.56557244]
[1761548030147,2.1611392,1153.4,1150.7,0.56557244]
[1761548030352,2.1611392,1153.4,1150.3,1.94997686]
[1761548030648,2.1611392,1153.4,1150.4,0.56561161]
[1761548030852,2.1611392,1153.5,1150.5,0.56561161]
[1761548031051,2.1611392,1153.5,1150.6,0.56561161]
[1761548031252,2.1611392,1153.5,1150.7,0.56561161]
[1761548031451,2.1611392,1153.5,1150.3,1.94997686]
[1761548031650,2.1611392,1153.5,1150.4,0.56568279]
[1761548031950,2.1611392,1153.5,1150.5,0.56568279]
[1761548032149,2.1611392,1153.5,1150.6,0.56568279]
[1761548032350,2.1611392,1153.5,1150.7,0.56568279]
[1761548032554,2.1611392,1153.5,1150.8,0.56568279]
[1761548032751,2.1611392,1153.5,1150.4,0.63997686]
[1761548033051,2.1611392,1153.5,1150.5,0.56572383]
[1761548033254,2.1611392,1153.5,1150.6,0.56572383]
[1761548033554,2.1611392,1153.5,1150.7,0.56572383]
[1761548033754,2.1611392,1153.5,1150.8,0.56572383]
[1761548033951,2.1611392,1153.5,1150.4,0.63997686]
[1761548034155,2.1611392,1153.5,1150.5,0.56583678]
[1761548034356,2.1611392,1153.5,1150.6,0.56583678]
[1761548034555,2.1611392,1154.6,1150.7,0.56583678]
[1761548034752,2.1611392,1154.6,1150.8,0.56583678]
[1761548034953,2.1611392,1154.6,1150.9,0.56583678]
[1761548035253,2.1611392,1154.6,1150.3,1.31]
[1761548035456,2.1611392,1154.5,1150.4,0.56609807]
[1761548035658,2.1611392,1154.5,1150.5,0.56609807]
[1761548035856,2.1611392,1154.5,1150.6,0.56609807]
[1761548036055,2.1611392,1154.0,1150.7,0.56609807]
[1761548036360,2.1611392,1154.0,1150.8,0.56609807]
[1761548036560,2.1611392,1153.8,1150.9,0.56609807]
[1761548036761,2.1611392,1153.8,1150.3,1.94997686]
[1761548036960,2.1611392,1153.8,1150.4,0.56609574]
[1761548037161,5.1867341,1154.3,1150.5,0.56609574]
[1761548037361,5.1867341,1154.3,1150.6,0.56609574]
[1761548037560,2.1611392,1154.3,1150.7,0.56609574]
[1761548037759,2.1611392,1154.3,1150.8,0.56609574]
[1761548037958,2.1611392,1154.3,1150.9,0.56609574]
[1761548038158,2.1611392,1154.3,1150.3,1.94997686]
[1761548038360,2.1611392,1154.3,1150.4,0.56659127]
[1761548038658,2.1611392,1154.2,1150.5,0.56659127]
[1761548038861,2.1611392,1154.2,1150.6,0.56659127]
[1761548039059,2.1611392,1154.2,1150.7,0.56659127]
[1761548039258,2.1611392,1154.2,1150.8,0.56659127]
[1761548039461,2.1611392,1154.2,1150.9,0.56659127]
[1761548039661,2.1611392,1154.2,1150.3,1.94997686]
[1761548039861,2.1611392,1154.2,1150.4,0.56682247]
[1761548040060,2.1611392,1154.2,1150.5,0.56682247]
[1761548040259,2.1611392,1154.2,1150.6,0.56682247]
[1761548040464,2.1611392,1154.2,1150.7,0.56682247]
[1761548040762,2.1611392,1154.2,1150.8,0.56682247]
[1761548040960,2.1611392,1154.2,1150.9,0.56682247]
[1761548041262,2.1611392,1154.2,1151.0,0.5670916]
[1761548041459,2.1611392,1154.2,1150.4,0.63997686]
[1761548041460,2.1611392,1153.5,1150.6,0.63997686]
[1761548041657,2.1611392,1153.5,1150.7,1.20689151]
[1761548041861,2.1611392,1153.5,1150.8,0.56691465]
[1761548042062,2.1611392,1153.4,1150.9,0.56691465]
[1761548042260,2.1611392,1153.4,1151.0,0.56691465]
[1761548042464,2.1611392,1153.4,1151.1,0.56691465]
[1761548042667,2.1611392,1153.3,1151.2,0.56691465]
[1761548042870,2.1611392,1153.3,1151.3,0.56691465]
[1761548043070,4.2849482,1154.2,1150.6,0.63997686]
[1761548043268,4.2849482,1154.2,1150.7,1.2070932]
[1761548043573,4.2849482,1154.2,1150.8,0.56711634]
[1761548043771,4.2849482,1154.2,1150.9,0.56711634]
[1761548044070,4.2849482,1154.2,1151.0,0.56711634]
[1761548044371,2.1611392,1154.7,1151.1,0.56711634]
[1761548044571,2.1611392,1154.7,1151.2,0.56711634]
[1761548044772,2.1611392,1154.7,1151.3,0.56711634]
[1761548044967,2.1611392,1154.7,1151.4,0.56711634]
[1761548045168,2.1611392,1154.7,1150.7,0.63997686]
[1761548045372,2.1611392,1154.7,1150.8,1.20767164]
[1761548045568,2.1611392,1154.7,1150.9,0.56769478]
[1761548045769,2.3119717,1154.8,1151.0,0.56769478]
[1761548046071,2.3119717,1154.8,1151.1,0.56769478]
[1761548046368,2.3119717,1154.8,1151.2,0.56769478]
[1761548046568,2.3119717,1154.8,1151.3,0.56769478]
[1761548046872,2.3119717,1154.8,1151.4,0.56769478]
[1761548047073,2.3119717,1154.8,1150.8,0.63997686]
[1761548047274,2.1611392,1153.3,1151.0,0.63997686]
[1761548047471,2.1611392,1153.3,1151.1,0.5676791]
[1761548047674,2.1611392,1153.3,1151.2,0.5676791]
[1761548047874,2.1611392,1153.3,1151.3,0.5676791]
[1761548048077,2.1611392,1153.3,1151.4,0.5676791]
[1761548048285,2.1611392,1153.3,1151.0,0.63997686]
[1761548048576,2.1611392,1153.3,1151.1,0.56747697]
[1761548048773,2.1611392,1153.3,1151.2,0.56747697]
[1761548048977,2.1611392,1153.3,1151.3,0.56747697]
[1761548049174,2.1611392,1153.3,1151.4,0.56747697]
[1761548049375,3.0255949,1153.7,1150.7,0.63997686]
[1761548049578,3.0255949,1153.7,1150.8,0.56750337]
[1761548049776,3.0255949,1153.7,1150.9,0.56750337]
[1761548049976,4.2849482,1154.3,1151.0,0.56750337]
[1761548050276,4.2849482,1154.3,1151.1,0.56750337]
[1761548050474,2.3119717,1154.8,1151.2,0.56750337]
[1761548050679,2.3119717,1154.8,1151.3,0.56750337]
[1761548050974,2.1611392,1154.0,1150.8,0.63997686]
[1761548051275,2.1611392,1153.2,1150.9,0.56758084]
[1761548051479,2.1611392,1153.2,1151.0,0.56758084]
[1761548051678,2.1611392,1153.2,1151.1,0.56758084]
[1761548051978,2.1611392,1153.1,1150.8,0.63997686]
[1761548052173,2.1611392,1153.1,1150.9,0.56767973]
[1761548052378,2.1611392,1153.2,1151.0,0.56767973]
[1761548052580,2.1611392,1153.2,1151.1,0.56767973]
[1761548052781,2.1611392,1153.4,1150.8,0.63997686]
[1761548052981,2.1611392,1153.4,1150.9,0.56765976]
[1761548053181,2.1611392,1153.4,1151.0,0.56765976]
[1761548053476,0.15110233,1153.0,1151.1,0.56765976]
[1761548053681,0.15110233,1153.0,1150.8,0.63997686]
[1761548053682,0.15110233,1153.0,1150.7,0.63997686]
[1761548053980,0.15110233,1153.0,1150.8,0.56765292]
[1761548054177,0.15110233,1153.0,1150.9,0.56765292]
[1761548054381,0.15110233,1153.0,1151.0,0.56765292]
[1761548054681,0.15110233,1153.0,1151.1,0.56765292]
[1761548054879,0.15110233,1153.0,1151.2,0.56765292]
[1761548055077,0.15110233,1153.0,1151.3,0.56765292]
[1761548055377,0.15110233,1153.0,1150.8,0.63997686]
[1761548055582,0.15110233,1153.0,1150.9,0.56753142]
[1761548055781,0.15110233,1153.0,1151.0,0.56753142]
[1761548055981,0.15110233,1153.0,1151.1,0.56753142]
[1761548056181,0.15110233,1153.0,1150.8,0.63997686]
[1761548056182,0.15110233,1153.0,1151.2,0.56753142]
[1761548056481,0.15110233,1153.0,1151.3,0.56753142]
[1761548056681,0.15110233,1153.0,1150.8,0.63997686]
[1761548056882,0.15110233,1153.0,1150.9,0.56752357]
[1761548057078,0.15110233,1153.0,1151.0,0.56752357]
[1761548057281,0.15110233,1153.0,1151.1,0.56752357]
[1761548057585,0.15110233,1153.0,1151.2,0.56752357]
[1761548057779,0.15110233,1153.0,1151.3,0.56752357]
[1761548057979,0.15110233,1153.0,1150.8,0.63997686]
[1761548058185,0.15110233,1153.0,1150.9,0.56750298]
[1761548058391,0.15110233,1153.0,1151.0,0.56750298]
[1761548058584,0.15110233,1153.0,1151.1,0.56750298]
[1761548058880,0.15110233,1153.0,1150.8,0.63997686]
[1761548058881,0.15110233,1153.0,1151.2,0.56750298]
[1761548059184,0.15110233,1153.0,1151.3,0.56750298]
[1761548059385,0.15110233,1153.0,1150.8,0.63997686]
[1761548059685,0.15110233,1153.0,1150.9,0.56747124]
[1761548059984,0.15110233,1153.0,1151.0,0.56747124]
[1761548060184,0.15110233,1153.0,1151.1,0.56747124]
[1761548060382,0.15110233,1153.0,1151.2,0.56747124]
[1761548060584,0.15110233,1153.0,1151.3,0.56747124]
[1761548060780,0.15110233,1153.0,1150.8,0.63997686]
[1761548061087,0.15110233,1153.0,1150.9,0.56744455]
[1761548061385,0.15110233,1153.0,1151.0,0.56744455]
[1761548061682,0.15110233,1153.0,1151.1,0.56744455]
[1761548061881,0.15110233,1153.0,1151.2,0.56744455]
[1761548062083,0.15110233,1153.0,1151.3,0.56744455]
[1761548062282,0.15110233,1153.0,1150.8,0.63997686]
[1761548062487,0.15110233,1153.0,1150.9,0.5674272]
[1761548062786,0.15110233,1153.0,1151.0,0.5674272]
[1761548062984,0.15110233,1153.0,1151.1,0.5674272]
[1761548063279,0.15110233,1153.0,1150.6,0.86251851]
[1761548063280,0.15110233,1153.0,1151.2,0.5674272]
[1761548063485,0.15110233,1153.0,1151.3,0.5674272]
[1761548063686,0.15110233,1153.0,1151.0,0.63997686]
[1761548063986,0.15110233,1153.0,1151.1,0.56722982]
[1761548064186,0.15110233,1153.0,1151.2,0.56722982]
[1761548064386,0.15110233,1153.0,1151.3,0.56732803]
[1761548064685,0.15110233,1153.0,1150.9,0.63997686]
[1761548064882,0.15110233,1153.0,1151.0,0.56732803]
[1761548065182,0.15110233,1153.0,1151.1,0.56732803]
[1761548065385,0.15110233,1153.0,1151.2,0.56732803]
[1761548065585,0.15110233,1153.0,1151.3,0.56732803]
[1761548065785,0.15110233,1153.0,1151.3,1.109]
[1761548070690,0.15110233,1153.0,1151.4,0.56739994]
[1761548070885,0.15110233,1153.0,1151.3,1.109]
[1761548071085,0.15110233,1153.0,1151.4,0.56747828]
[1761548071285,0.15110233,1153.0,1151.3,1.109]
[1761548093002,0.15110233,1153.0,1151.4,0.56687052]
[1761548093208,0.15110233,1153.0,1151.3,1.109]
[1761548093508,0.15110233,1153.0,1151.4,0.56679317]
[1761548093803,0.15110233,1153.0,1151.3,1.109]
[1761548094007,0.15110233,1153.0,1151.4,0.56679209]
[1761548094208,0.15110233,1153.0,1151.3,1.109]
[1761548094508,0.15110233,1153.0,1151.4,0.56687059]
[1761548094707,0.15110233,1153.0,1151.5,0.56687059]
[1761548095006,0.15110233,1153.0,1151.3,1.109]
[1761548095207,0.15110233,1153.0,1151.4,0.56686906]
[1761548095405,0.15110233,1153.0,1151.5,0.56686906]
[1761548095604,0.15110233,1153.0,1151.3,1.109]
[1761548095807,0.15110233,1153.0,1151.4,0.56692141]
[1761548096008,0.15110233,1153.0,1151.5,0.56692141]
[1761548096208,2.1611392,1153.9,1151.3,1.109]
[1761548096412,0.15105183,1153.2,1151.4,0.56694501]
[1761548096612,0.15105183,1153.2,1151.5,0.56694501]
[1761548096811,0.15105183,1153.2,1151.3,1.109]
[1761548097109,0.15105183,1153.2,1151.4,0.56692704]
[1761548097313,0.15105183,1153.2,1151.5,0.56692704]
[1761548097616,0.15105183,1153.2,1151.3,1.109]
[1761548097914,0.15105183,1153.2,1151.4,0.56692203]
[1761548098213,0.15105183,1153.2,1151.5,0.56692203]
[1761548098410,0.15105183,1153.2,1151.3,1.109]
[1761548098710,0.15105183,1153.2,1151.4,0.56692691]
[1761548098913,0.15105183,1153.2,1151.5,0.56692691]
[1761548099111,0.15105183,1153.2,1151.3,1.109]
[1761548099316,0.15105183,1153.2,1151.4,0.56694131]
[1761548099513,0.15105183,1153.2,1151.3,1.109]
[1761548099514,0.15105183,1153.2,1151.5,0.56694131]
[1761548099813,0.15105183,1153.2,1151.3,1.109]
[1761548100017,0.15105183,1153.2,1151.4,0.56695218]
[1761548100217,0.15105183,1153.2,1151.5,0.56695218]
[1761548100417,0.15105183,1153.2,1151.6,0.56695218]
[1761548100714,0.15105183,1153.2,1151.3,1.109]
[1761548101014,0.15105183,1153.2,1151.4,0.56690779]
[1761548101213,0.15105183,1153.2,1151.3,1.109]
[1761548101214,0.15105183,1153.2,1151.5,0.56690779]
[1761548101516,0.15105183,1153.2,1151.6,0.56690779]
[1761548101714,0.15105183,1153.2,1151.3,1.109]
[1761548101919,0.15105183,1153.2,1151.4,0.56689351]
[1761548102218,0.15105183,1153.2,1151.3,1.109]
[1761548102219,0.15105183,1153.2,1151.5,0.56689351]
[1761548102416,0.15105183,1153.2,1151.6,0.56689351]
[1761548102620,0.15105183,1153.2,1151.3,1.109]